[Event "Sverigemastarklassen 2025"]
[Site "Uppsala, Sweden"]
[Date "2025.07.05"]
[Round "8.1"]
[White "Hillarp-Persson, Tiger"]
[Black "Storme, Isak"]
[Result "1-0"]
[TimeControl "90 min for 40 move + 30 min with an increment of 30 sec starting move 1"]
[WhiteTitle "GM"]
[BlackTitle "IM"]
[WhiteFideId "1700812"]
[BlackFideId "1728113"]
[WhiteElo "2445"]
[BlackElo "2466"]

1. Nf3 {[%clk 01:30:57]} {[%emt 00:00:03]} d5 {[%clk 01:30:36]} {[%emt
00:00:24]} 2. e3 {[%clk 01:28:58]} {[%emt 00:02:30]} Nf6 {[%clk 01:29:34]}
{[%emt 00:01:32]} 3. Be2 {[%clk 01:26:02]} {[%emt 00:03:26]} c5 {[%clk
01:27:36]} {[%emt 00:02:27]} 4. d4 {[%clk 01:26:01]} {[%emt 00:00:31]} Nc6
{[%clk 01:26:28]} {[%emt 00:01:37]} 5. O-O {[%clk 01:26:13]} {[%emt 00:00:19]}
cxd4 {[%clk 01:24:02]} {[%emt 00:02:57]} 6. exd4 {[%clk 01:26:33]} {[%emt
00:00:10]} Bg4 {[%clk 01:22:57]} {[%emt 00:01:34]} 7. c3 {[%clk 01:26:12]}
{[%emt 00:00:52]} e6 {[%clk 01:22:44]} {[%emt 00:00:42]} 8. Bf4 {[%clk
01:25:20]} {[%emt 00:01:21]} Bxf3 {[%clk 01:16:33]} {[%emt 00:06:42]} 9. Bxf3
{[%clk 01:22:16]} {[%emt 00:03:35]} Bd6 {[%clk 01:16:56]} {[%emt 00:00:07]} 10.
Bxd6 {[%clk 01:21:12]} {[%emt 00:01:35]} Qxd6 {[%clk 01:14:43]} {[%emt
00:02:42]} 11. Nd2 {[%clk 01:21:34]} {[%emt 00:00:07]} h5 {[%clk 01:10:17]}
{[%emt 00:04:56]} 12. Be2 {[%clk 01:20:09]} {[%emt 00:01:54]} g5 {[%clk
01:04:02]} {[%emt 00:06:45]} 13. Bb5 {[%clk 01:18:46]} {[%emt 00:01:54]} O-O-O
{[%clk 00:59:13]} {[%emt 00:05:19]} 14. Qe2 {[%clk 01:05:57]} {[%emt 00:13:19]}
Kb8 {[%clk 00:56:37]} {[%emt 00:03:06]} 15. Rae1 {[%clk 01:04:45]} {[%emt
00:01:42]} Ne7 {[%clk 00:48:39]} {[%emt 00:08:28]} 16. Bd3 {[%clk 01:02:51]}
{[%emt 00:02:24]} Rhg8 {[%clk 00:43:21]} {[%emt 00:05:47]} 17. Nf3 {[%clk
00:57:14]} {[%emt 00:06:07]} Rg7 {[%clk 00:38:41]} {[%emt 00:05:10]} 18. Ne5
{[%clk 00:53:13]} {[%emt 00:04:32]} Rdg8 {[%clk 00:35:45]} {[%emt 00:03:26]} 19.
Qf3 {[%clk 00:46:32]} {[%emt 00:07:11]} Ng4 {[%clk 00:33:47]} {[%emt 00:02:28]}
20. Nxg4 {[%clk 00:46:40]} {[%emt 00:00:22]} hxg4 {[%clk 00:34:07]} {[%emt
00:00:10]} 21. Qxg4 {[%clk 00:46:55]} {[%emt 00:00:15]} Ka8 {[%clk 00:30:13]}
{[%emt 00:04:24]} 22. Re2 {[%clk 00:42:51]} {[%emt 00:04:34]} Rh8 {[%clk
00:28:02]} {[%emt 00:02:41]} 23. Qg3 {[%clk 00:41:02]} {[%emt 00:02:19]} Qd8
{[%clk 00:22:52]} {[%emt 00:05:40]} 24. f4 {[%clk 00:38:10]} {[%emt 00:03:22]}
g4 {[%clk 00:17:58]} {[%emt 00:05:25]} 25. f5 {[%clk 00:34:51]} {[%emt
00:03:49]} Rg5 {[%clk 00:16:06]} {[%emt 00:02:21]} 26. fxe6 {[%clk 00:34:44]}
{[%emt 00:00:37]} f5 {[%clk 00:16:28]} {[%emt 00:00:09]} 27. Qe5 {[%clk
00:31:12]} {[%emt 00:04:01]} Rgh5 {[%clk 00:14:17]} {[%emt 00:02:41]} 28. g3
{[%clk 00:27:40]} {[%emt 00:04:02]} Qg8 {[%clk 00:13:32]} {[%emt 00:01:14]} 29.
Bxf5 {[%clk 00:18:45]} {[%emt 00:09:26]} a6 {[%clk 00:08:02]} {[%emt 00:06:00]}
30. Qf6 {[%clk 00:16:55]} {[%emt 00:02:20]} Qd8 {[%clk 00:07:47]} {[%emt
00:00:45]} 31. Bxg4 {[%clk 00:15:58]} {[%emt 00:01:27]} R5h6 {[%clk 00:08:10]}
{[%emt 00:00:07]} 32. Qe5 {[%clk 00:13:26]} {[%emt 00:03:02]} Qg8 {[%clk
00:08:30]} {[%emt 00:00:10]} 33. Bf3 {[%clk 00:05:36]} {[%emt 00:08:20]} Qh7
{[%clk 00:08:51]} {[%emt 00:00:09]} 34. h4 {[%clk 00:03:40]} {[%emt 00:02:26]}
Qg6 {[%clk 00:08:02]} {[%emt 00:01:18]} 35. h5 {[%clk 00:02:20]} {[%emt
00:01:50]} Rxh5 {[%clk 00:05:54]} {[%emt 00:02:39]} 36. Bxh5 {[%clk 00:02:41]}
{[%emt 00:00:09]} Rxh5 {[%clk 00:06:17]} {[%emt 00:00:07]} 37. Qf4 {[%clk
00:01:02]} {[%emt 00:02:08]} Rf5 {[%clk 00:05:41]} {[%emt 00:01:06]} 38. Qc7
{[%clk 00:00:52]} {[%emt 00:00:41]} Qg4 {[%clk 00:02:49]} {[%emt 00:03:22]} 39.
Ref2 {[%clk 00:00:41]} {[%emt 00:00:41]} Qg5 {[%clk 00:00:51]} {[%emt
00:02:27]} 40. Rxf5 {[%clk 00:00:44]} {[%emt 00:00:28]} Nxf5 {[%clk 00:01:16]}
{[%emt 00:00:06]} 41. Qc8+ {[%clk 00:00:32]} {[%emt 00:00:42]} Ka7 {[%clk
00:01:35]} {[%emt 00:00:11]} 42. Qc5+ {[%clk 00:00:54]} {[%emt 00:00:07]} Kb8
{[%clk 00:01:44]} {[%emt 00:00:21]} 43. Qf8+ {[%clk 00:01:14]} {[%emt
00:00:11]} 1-0

[Event "Sverigemastarklassen 2025"]
[Site "Uppsala, Sweden"]
[Date "2025.07.05"]
[Round "8.2"]
[White "Falkevall, Axel"]
[Black "Pantzar, Milton"]
[Result "1/2-1/2"]
[TimeControl "90 min for 40 move + 30 min with an increment of 30 sec starting move 1"]
[WhiteTitle "FM"]
[BlackTitle "IM"]
[WhiteFideId "1735560"]
[BlackFideId "1721003"]
[WhiteElo "2372"]
[BlackElo "2450"]

1. e4 {[%clk 01:29:51]} {[%emt 00:01:09]} e5 {[%clk 01:30:48]} {[%emt
00:00:12]} 2. Nf3 {[%clk 01:30:15]} {[%emt 00:00:05]} Nc6 {[%clk 01:31:11]}
{[%emt 00:00:08]} 3. Bb5 {[%clk 01:30:38]} {[%emt 00:00:07]} a6 {[%clk
01:30:27]} {[%emt 00:01:14]} 4. Ba4 {[%clk 01:30:13]} {[%emt 00:00:55]} Nf6
{[%clk 01:30:47]} {[%emt 00:00:10]} 5. O-O {[%clk 01:30:05]} {[%emt 00:00:38]}
Be7 {[%clk 01:30:55]} {[%emt 00:00:22]} 6. Re1 {[%clk 01:29:46]} {[%emt
00:00:49]} b5 {[%clk 01:31:07]} {[%emt 00:00:18]} 7. Bb3 {[%clk 01:30:11]}
{[%emt 00:00:05]} d6 {[%clk 01:31:32]} {[%emt 00:00:05]} 8. c3 {[%clk
01:30:34]} {[%emt 00:00:06]} O-O {[%clk 01:31:13]} {[%emt 00:00:49]} 9. h3
{[%clk 01:30:29]} {[%emt 00:00:35]} Na5 {[%clk 01:31:14]} {[%emt 00:00:29]} 10.
Bc2 {[%clk 01:30:54]} {[%emt 00:00:06]} c5 {[%clk 01:31:38]} {[%emt 00:00:06]}
11. d4 {[%clk 01:31:20]} {[%emt 00:00:03]} Qc7 {[%clk 01:31:55]} {[%emt
00:00:13]} 12. d5 {[%clk 01:29:50]} {[%emt 00:02:01]} Nc4 {[%clk 01:29:06]}
{[%emt 00:03:19]} 13. b3 {[%clk 01:28:49]} {[%emt 00:01:31]} Nb6 {[%clk
01:29:29]} {[%emt 00:00:07]} 14. a4 {[%clk 01:28:54]} {[%emt 00:00:25]} c4
{[%clk 01:27:54]} {[%emt 00:02:05]} 15. bxc4 {[%clk 01:28:29]} {[%emt
00:00:55]} Bd7 {[%clk 01:26:49]} {[%emt 00:01:35]} 16. axb5 {[%clk 01:28:30]}
{[%emt 00:00:29]} axb5 {[%clk 01:25:50]} {[%emt 00:01:30]} 17. Rxa8 {[%clk
01:28:46]} {[%emt 00:00:14]} Rxa8 {[%clk 01:26:04]} {[%emt 00:00:15]} 18. cxb5
{[%clk 01:29:04]} {[%emt 00:00:12]} Bxb5 {[%clk 01:26:23]} {[%emt 00:00:11]} 19.
Nfd2 {[%clk 01:29:23]} {[%emt 00:00:10]} Nfd7 {[%clk 01:19:33]} {[%emt
00:07:21]} 20. Na3 {[%clk 01:29:07]} {[%emt 00:00:47]} Ba6 {[%clk 01:17:07]}
{[%emt 00:02:55]} 21. Ndb1 {[%clk 01:29:11]} {[%emt 00:00:26]} Nc5 {[%clk
01:02:42]} {[%emt 00:14:55]} 22. Be3 {[%clk 01:28:40]} {[%emt 00:01:00]} g6
{[%clk 00:54:10]} {[%emt 00:09:03]} 23. Nd2 {[%clk 01:14:55]} {[%emt 00:14:14]}
Bd3 {[%clk 00:45:54]} {[%emt 00:08:46]} 24. Bxc5 {[%clk 00:55:31]} {[%emt
00:19:54]} Qxc5 {[%clk 00:44:49]} {[%emt 00:01:36]} 25. Bxd3 {[%clk 00:53:51]}
{[%emt 00:02:10]} Rxa3 {[%clk 00:42:54]} {[%emt 00:02:25]} 26. Nb1 {[%clk
00:51:57]} {[%emt 00:02:24]} Ra2 {[%clk 00:36:08]} {[%emt 00:07:15]} 27. Re2
{[%clk 00:51:15]} {[%emt 00:01:13]} Ra1 {[%clk 00:36:21]} {[%emt 00:00:17]} 28.
Qb3 {[%clk 00:45:40]} {[%emt 00:06:05]} Qa5 {[%clk 00:27:11]} {[%emt 00:09:39]}
29. Bb5 {[%clk 00:40:55]} {[%emt 00:05:16]} Bg5 {[%clk 00:23:19]} {[%emt
00:04:22]} 30. Rb2 {[%clk 00:31:02]} {[%emt 00:10:23]} Bc1 {[%clk 00:21:28]}
{[%emt 00:02:20]} 31. Rc2 {[%clk 00:29:54]} {[%emt 00:01:39]} Ba3 {[%clk
00:21:39]} {[%emt 00:00:19]} 32. g3 {[%clk 00:25:43]} {[%emt 00:04:41]} Bc5
{[%clk 00:21:30]} {[%emt 00:00:39]} 33. Kg2 {[%clk 00:25:47]} {[%emt 00:00:25]}
Kg7 {[%clk 00:18:35]} {[%emt 00:03:25]} 34. Bd3 {[%clk 00:19:21]} {[%emt
00:06:56]} Nd7 {[%clk 00:15:14]} {[%emt 00:03:52]} 35. Qb7 {[%clk 00:13:10]}
{[%emt 00:06:40]} Nf6 {[%clk 00:07:49]} {[%emt 00:07:55]} 36. Nd2 {[%clk
00:12:37]} {[%emt 00:01:03]} Rd1 {[%clk 00:06:52]} {[%emt 00:01:28]} 37. Qa6
{[%clk 00:09:24]} {[%emt 00:03:42]} Qc7 {[%clk 00:03:40]} {[%emt 00:03:43]} 38.
Be2 {[%clk 00:04:47]} {[%emt 00:05:08]} Rxd2 {[%clk 00:01:12]} {[%emt
00:02:58]} 39. Rxd2 {[%clk 00:05:13]} {[%emt 00:00:04]} Nxe4 {[%clk 00:01:36]}
{[%emt 00:00:05]} 40. Rb2 {[%clk 00:04:40]} {[%emt 00:01:02]} Nxf2 {[%clk
00:00:51]} {[%emt 00:01:15]} 41. Bg4 {[%clk 00:14:46]} {[%emt 00:20:24]} Nxg4
{[%clk 00:13:20]} {[%emt 00:18:01]} 42. hxg4 {[%clk 00:15:11]} {[%emt
00:00:05]} Qd7 {[%clk 00:13:08]} {[%emt 00:00:42]} 43. Qe2 {[%clk 00:12:08]}
{[%emt 00:03:32]} h6 {[%clk 00:13:15]} {[%emt 00:00:25]} 44. Rb1 {[%clk
00:11:22]} {[%emt 00:01:16]} Qe7 {[%clk 00:12:32]} {[%emt 00:01:12]} 45. Qe4
{[%clk 00:09:54]} {[%emt 00:01:58]} Qg5 {[%clk 00:12:12]} {[%emt 00:00:51]} 46.
c4 {[%clk 00:09:22]} {[%emt 00:01:02]} Qd2+ {[%clk 00:11:22]} {[%emt 00:01:19]}
47. Kh3 {[%clk 00:07:43]} {[%emt 00:02:10]} Qf2 {[%clk 00:07:43]} {[%emt
00:04:09]} 48. Qd3 {[%clk 00:06:56]} {[%emt 00:01:17]} Qf6 {[%clk 00:06:40]}
{[%emt 00:01:33]} 49. Rf1 {[%clk 00:06:29]} {[%emt 00:00:57]} Qe7 {[%clk
00:05:49]} {[%emt 00:01:21]} 50. Kg2 {[%clk 00:05:38]} {[%emt 00:01:20]} Qg5
{[%clk 00:04:26]} {[%emt 00:01:53]} 51. Qf3 {[%clk 00:05:37]} {[%emt 00:00:31]}
Qe7 {[%clk 00:04:49]} {[%emt 00:00:07]} 52. Qb3 {[%clk 00:04:48]} {[%emt
00:01:20]} Bd4 {[%clk 00:03:52]} {[%emt 00:01:26]} 53. Qd3 {[%clk 00:04:39]}
{[%emt 00:00:40]} Qa7 {[%clk 00:02:48]} {[%emt 00:01:35]} 54. Qf3 {[%clk
00:04:15]} {[%emt 00:00:54]} Qe7 {[%clk 00:03:12]} {[%emt 00:00:07]} 55. Qd3
{[%clk 00:04:24]} {[%emt 00:00:20]} Bc5 {[%clk 00:03:09]} {[%emt 00:00:33]} 56.
Qf3 {[%clk 00:04:22]} {[%emt 00:00:31]} Bd4 {[%clk 00:01:55]} {[%emt 00:01:45]}
57. Qd3 {[%clk 00:03:47]} {[%emt 00:01:04]} Bc5 {[%clk 00:01:46]} {[%emt
00:00:39]} 58. Qf3 {[%clk 00:02:57]} {[%emt 00:01:20]} 1/2-1/2

[Event "Sverigemastarklassen 2025"]
[Site "Uppsala, Sweden"]
[Date "2025.07.05"]
[Round "8.3"]
[White "Hector, Jonny"]
[Black "Blomqvist, Erik"]
[Result "1-0"]
[TimeControl "90 min for 40 move + 30 min with an increment of 30 sec starting move 1"]
[WhiteTitle "GM"]
[BlackTitle "GM"]
[WhiteFideId "1700090"]
[BlackFideId "1709437"]
[WhiteElo "2430"]
[BlackElo "2448"]

1. e4 {[%clk 01:30:53]} {[%emt 00:00:06]} e6 {[%clk 01:30:41]} {[%emt
00:00:21]} 2. d4 {[%clk 01:31:10]} {[%emt 00:00:11]} d5 {[%clk 01:31:05]}
{[%emt 00:00:07]} 3. Nc3 {[%clk 01:31:25]} {[%emt 00:00:15]} Bb4 {[%clk
01:31:28]} {[%emt 00:00:07]} 4. e5 {[%clk 01:31:33]} {[%emt 00:00:22]} c5
{[%clk 01:31:41]} {[%emt 00:00:17]} 5. Bd2 {[%clk 01:31:44]} {[%emt 00:00:19]}
Ne7 {[%clk 01:31:46]} {[%emt 00:00:25]} 6. a3 {[%clk 01:32:01]} {[%emt
00:00:13]} Bxc3 {[%clk 01:31:38]} {[%emt 00:00:38]} 7. Bxc3 {[%clk 01:32:25]}
{[%emt 00:00:05]} Nbc6 {[%clk 01:31:45]} {[%emt 00:00:23]} 8. Nf3 {[%clk
01:32:04]} {[%emt 00:00:51]} cxd4 {[%clk 01:31:29]} {[%emt 00:00:46]} 9. Nxd4
{[%clk 01:32:22]} {[%emt 00:00:12]} Nxe5 {[%clk 01:31:29]} {[%emt 00:00:31]} 10.
f4 {[%clk 01:32:17]} {[%emt 00:00:34]} Nd7 {[%clk 01:31:19]} {[%emt 00:00:41]}
11. Qg4 {[%clk 01:30:05]} {[%emt 00:02:41]} Ng6 {[%clk 01:31:02]} {[%emt
00:00:46]} 12. f5 {[%clk 01:29:37]} {[%emt 00:01:01]} Nde5 {[%clk 01:30:58]}
{[%emt 00:00:33]} 13. Bb5+ {[%clk 01:23:41]} {[%emt 00:06:24]} Bd7 {[%clk
01:28:53]} {[%emt 00:02:37]} 14. Bxd7+ {[%clk 01:20:50]} {[%emt 00:03:20]} Qxd7
{[%clk 01:28:36]} {[%emt 00:00:48]} 15. fxe6 {[%clk 01:19:54]} {[%emt
00:01:25]} Nxg4 {[%clk 01:24:55]} {[%emt 00:04:12]} 16. exd7+ {[%clk 01:20:14]}
{[%emt 00:00:09]} Kxd7 {[%clk 01:25:19]} {[%emt 00:00:06]} 17. O-O {[%clk
01:18:14]} {[%emt 00:02:30]} f6 {[%clk 01:24:27]} {[%emt 00:01:23]} 18. Nf5
{[%clk 01:15:42]} {[%emt 00:03:02]} Rhg8 {[%clk 01:22:08]} {[%emt 00:02:49]} 19.
Rad1 {[%clk 01:07:26]} {[%emt 00:08:45]} Ke6 {[%clk 01:15:51]} {[%emt
00:06:48]} 20. Rd3 {[%clk 00:56:03]} {[%emt 00:11:53]} N4e5 {[%clk 00:46:01]}
{[%emt 00:30:20]} 21. Rh3 {[%clk 00:45:24]} {[%emt 00:11:07]} Ne7 {[%clk
00:42:17]} {[%emt 00:04:15]} 22. Nd4+ {[%clk 00:44:09]} {[%emt 00:01:46]} Kf7
{[%clk 00:40:35]} {[%emt 00:02:12]} 23. Rxh7 {[%clk 00:42:19]} {[%emt
00:02:19]} a6 {[%clk 00:36:18]} {[%emt 00:04:49]} 24. Ne2 {[%clk 00:33:36]}
{[%emt 00:09:11]} N7c6 {[%clk 00:32:42]} {[%emt 00:04:06]} 25. Rh4 {[%clk
00:32:04]} {[%emt 00:02:02]} Rge8 {[%clk 00:28:03]} {[%emt 00:05:09]} 26. Ng3
{[%clk 00:30:10]} {[%emt 00:02:24]} Ng6 {[%clk 00:18:09]} {[%emt 00:10:24]} 27.
Rg4 {[%clk 00:27:57]} {[%emt 00:02:43]} Nge5 {[%clk 00:13:09]} {[%emt
00:05:30]} 28. Rgf4 {[%clk 00:27:28]} {[%emt 00:01:00]} Rad8 {[%clk 00:11:39]}
{[%emt 00:02:00]} 29. Nf5 {[%clk 00:20:54]} {[%emt 00:07:02]} Rd7 {[%clk
00:11:44]} {[%emt 00:00:27]} 30. h3 {[%clk 00:11:44]} {[%emt 00:09:39]} Red8
{[%clk 00:09:01]} {[%emt 00:03:14]} 31. Rd1 {[%clk 00:08:08]} {[%emt 00:04:06]}
Ng6 {[%clk 00:04:19]} {[%emt 00:05:12]} 32. Rg4 {[%clk 00:06:34]} {[%emt
00:02:04]} d4 {[%clk 00:04:12]} {[%emt 00:00:37]} 33. Bb4 {[%clk 00:02:45]}
{[%emt 00:04:19]} Rd5 {[%clk 00:03:03]} {[%emt 00:01:39]} 34. Rf1 {[%clk
00:03:11]} {[%emt 00:00:04]} a5 {[%clk 00:03:02]} {[%emt 00:00:31]} 35. Bd2
{[%clk 00:02:42]} {[%emt 00:00:59]} Nce7 {[%clk 00:01:31]} {[%emt 00:02:01]} 36.
Ng3 {[%clk 00:01:18]} {[%emt 00:01:54]} Ne5 {[%clk 00:01:27]} {[%emt 00:00:34]}
37. Re4 {[%clk 00:01:16]} {[%emt 00:00:31]} Rc8 {[%clk 00:01:34]} {[%emt
00:00:23]} 38. Bf4 {[%clk 00:00:49]} {[%emt 00:00:58]} N7g6 {[%clk 00:00:45]}
{[%emt 00:01:19]} 39. Bxe5 {[%clk 00:00:50]} {[%emt 00:00:29]} Nxe5 {[%clk
00:01:06]} {[%emt 00:00:08]} 40. Rf2 {[%clk 00:00:51]} {[%emt 00:00:29]} Rdc5
{[%clk 00:00:37]} {[%emt 00:00:59]} 41. Nf5 {[%clk 00:28:42]} {[%emt 00:02:39]}
Rd8 {[%clk 00:17:18]} {[%emt 00:13:50]} 42. Nxd4 {[%clk 00:26:59]} {[%emt
00:02:12]} b5 {[%clk 00:15:15]} {[%emt 00:02:33]} 43. Nb3 {[%clk 00:23:04]}
{[%emt 00:04:25]} Rd1+ {[%clk 00:15:19]} {[%emt 00:00:27]} 44. Kh2 {[%clk
00:23:27]} {[%emt 00:00:07]} Rcd5 {[%clk 00:15:08]} {[%emt 00:00:41]} 45. Nxa5
{[%clk 00:23:28]} {[%emt 00:00:28]} Rc1 {[%clk 00:14:44]} {[%emt 00:00:55]} 46.
b4 {[%clk 00:20:46]} {[%emt 00:03:12]} Ra1 {[%clk 00:14:23]} {[%emt 00:00:51]}
47. Re3 {[%clk 00:20:43]} {[%emt 00:00:33]} g5 {[%clk 00:14:28]} {[%emt
00:00:25]} 48. Nb7 {[%clk 00:18:38]} {[%emt 00:02:34]} Kg6 {[%clk 00:13:20]}
{[%emt 00:01:38]} 49. Nc5 {[%clk 00:14:49]} {[%emt 00:04:19]} Rdd1 {[%clk
00:11:21]} {[%emt 00:02:29]} 50. Kg3 {[%clk 00:13:25]} {[%emt 00:01:53]} Nc4
{[%clk 00:08:28]} {[%emt 00:03:24]} 51. Re6 {[%clk 00:12:25]} {[%emt 00:01:29]}
Rxa3+ {[%clk 00:08:36]} {[%emt 00:00:23]} 52. Kh2 {[%clk 00:12:40]} {[%emt
00:00:14]} Nd2 {[%clk 00:07:24]} {[%emt 00:01:43]} 53. Rexf6+ {[%clk 00:12:27]}
{[%emt 00:00:43]} Kh7 {[%clk 00:07:47]} {[%emt 00:00:07]} 54. Rf7+ {[%clk
00:11:48]} {[%emt 00:01:07]} Kg8 {[%clk 00:08:15]} {[%emt 00:00:04]} 55. Ne6
{[%clk 00:11:32]} {[%emt 00:00:46]} Ra8 {[%clk 00:08:24]} {[%emt 00:00:21]} 56.
Nxg5 {[%clk 00:10:04]} {[%emt 00:01:56]} 1-0